Departmental family,Entity,Date Paid,Expense type,Expense Area,Supplier,Transaction Number, Amount ,Description, Supplier Type , Expenditure Type 
UK Statistics Authority,Office for National Statistics,01-Sep-17,Contractor Costs,Public Policy Analysis ,NatCen Social Research,46709,"20,758.18", Statistical Services, Large , Programme 
UK Statistics Authority,Office for National Statistics,01-Sep-17,Newport Vouchers,Public Policy Analysis ,NatCen Social Research,46709,"14,402.80", Post Office Vouchers , Large , Programme 
UK Statistics Authority,Office for National Statistics,01-Sep-17,ICT Commission Charge,Digital Services & Technology,Crown Hosting Data Centres Limited,46710,"3,008.33", Information Management Services, SME , Programme 
UK Statistics Authority,Office for National Statistics,01-Sep-17,"ICT Outsourcing, Maintenance and Support",Digital Services & Technology,Crown Hosting Data Centres Limited,46710,"19,181.45", Information Management Services, SME , Programme 
UK Statistics Authority,Office for National Statistics,01-Sep-17,"ICT Outsourcing, Maintenance and Support",Digital Services & Technology,Crown Hosting Data Centres Limited,46710,"19,885.63", Information Management Services, SME , Programme 
UK Statistics Authority,Office for National Statistics,01-Sep-17,Accommodation and Building Management,Business Services & Development,Vinci Construction UK Limited,46713,"9,716.60", Major Works Newport, Large , Programme 
UK Statistics Authority,Office for National Statistics,01-Sep-17,Major Works over 25k,Business Services & Development,Vinci Construction UK Limited,46713,"12,531.44", Major Works Newport, Large , Programme 
UK Statistics Authority,Office for National Statistics,01-Sep-17,Major Works over 25k,Business Services & Development,Vinci Construction UK Limited,46713,"2,806.03", Major Works Newport, Large , Programme 
UK Statistics Authority,Office for National Statistics,01-Sep-17,Major Works over 25k,Business Services & Development,Vinci Construction UK Limited,46713,"5,746.33", Major Works Titchfield, Large , Programme 
UK Statistics Authority,Office for National Statistics,01-Sep-17,Accommodation and Building Management,Business Services & Development,Department of Energy and Climate Change,46730,"6,726.06",Christchurch Carbon Commitment Allowance, Large , Programme 
UK Statistics Authority,Office for National Statistics,01-Sep-17,Accommodation and Building Management,Business Services & Development,Department of Energy and Climate Change,46730,"24,662.22",Drummond Gate Carbon Commitment Allowance, Large , Programme 
UK Statistics Authority,Office for National Statistics,01-Sep-17,Accommodation and Building Management,Business Services & Development,Department of Energy and Climate Change,46730,"18,683.50",Newport Carbon Commitment Allowance, Large , Programme 
UK Statistics Authority,Office for National Statistics,01-Sep-17,Accommodation and Building Management,Business Services & Development,Department of Energy and Climate Change,46730,"24,662.22",Titchfield Carbon Commitment Allowance, Large , Programme 
UK Statistics Authority,Office for National Statistics,01-Sep-17,"ICT Outsourcing, Maintenance and Support",Digital Services & Technology,QA Ltd,46740,"28,920.00", Information Management Services, Large , Programme 
UK Statistics Authority,Office for National Statistics,01-Sep-17,Rent Payable,Business Services & Development,Eaton Aerospace Limited,46742,"25,624.80",Titchfield Rent , Large , Programme 
UK Statistics Authority,Office for National Statistics,01-Sep-17,Capital Major Works > 25k,Business Services & Development,Paramount Office Interiors Ltd,46743,"32,439.83", Major Works Newport, SME , Programme 
UK Statistics Authority,Office for National Statistics,01-Sep-17,Major Works Over 25k,Business Services & Development,Paramount Office Interiors Ltd,46743,"23,490.91", Major Works Newport, SME , Programme 
UK Statistics Authority,Office for National Statistics,01-Sep-17,Consultant Costs,Digital Services & Technology,Computacenter (UK) Limited,46747,"183,000.00", Information Management Services, Large , Programme 
UK Statistics Authority,Office for National Statistics,01-Sep-17,"ICT Outsourcing, Maintenance and Support",Digital Services & Technology,Computacenter (UK) Limited,46747,"25,699.25", Information Management Services, Large , Programme 
UK Statistics Authority,Office for National Statistics,01-Sep-17,Software Liceneses at Cost,Digital Services & Technology,Computacenter (UK) Limited,46747,"1,194,206.91", Information Management Services, Large , Programme 
UK Statistics Authority,Office for National Statistics,01-Sep-17,VMWare Perpetual Licenses,Digital Services & Technology,Computacenter (UK) Limited,46747,"964,375.29", Information Management Services, Large , Programme 
UK Statistics Authority,Office for National Statistics,01-Sep-17,"ICT Outsourcing, Maintenance and Support",Digital Services & Technology,Valtech Ltd,46751,"38,898.00", Information Management Services, Large , Programme 
UK Statistics Authority,Office for National Statistics,04-Sep-17,Accommodation and Building Management,Business Services & Development,Vinci Construction UK Limited,46965,"6,328.74", Major Work Newport, Large , Programme 
UK Statistics Authority,Office for National Statistics,04-Sep-17,Major Works over 25k,Business Services & Development,Vinci Construction UK Limited,46965,"12,573.57", Major Work Newport, Large , Programme 
UK Statistics Authority,Office for National Statistics,04-Sep-17,Major Works over 25k,Business Services & Development,Vinci Construction UK Limited,46965,"2,815.48", Major Works Newport, Large , Programme 
UK Statistics Authority,Office for National Statistics,04-Sep-17,Major Works over 25k,Business Services & Development,Vinci Construction UK Limited,46965,"10,378.61", Major Work Titchfield, Large , Programme 
UK Statistics Authority,Office for National Statistics,06-Sep-17,Non-IT Maintenance and Hire,Data Collection,Relianceprotect,47523,"26,280.78", Lone Worker Security Devices, SME , Programme 
UK Statistics Authority,Office for National Statistics,06-Sep-17,,Digital Services & Technology,E Synergy Solutions,47524,"15,390.00", Information Management Services, SME , Programme 
UK Statistics Authority,Office for National Statistics,06-Sep-17,Contractor Costs,Digital Services & Technology,E Synergy Solutions,47524,"6,204.00", Information Management Services, SME , Programme 
UK Statistics Authority,Office for National Statistics,06-Sep-17,"ICT Outsourcing, Maintenance and Support",Digital Services & Technology,E Synergy Solutions,47524,"28,224.00", Information Management Services, SME , Programme 
UK Statistics Authority,Office for National Statistics,06-Sep-17,"ICT Outsourcing, Maintenance and Support",Digital Services & Technology,E Synergy Solutions,47524,"1,620.00", Information Management Services, SME , Programme 
UK Statistics Authority,Office for National Statistics,06-Sep-17,"ICT Outsourcing, Maintenance and Support",Digital Services & Technology,Cloudera Inc,47526,"90,576.00", Information Management Services, Large , Programme 
UK Statistics Authority,Office for National Statistics,06-Sep-17,Accommodation and Building Management,Business Services & Development,Vinci Construction UK Limited,47528,"3,717.60", Major Works Newport, Large , Programme 
UK Statistics Authority,Office for National Statistics,06-Sep-17,Facilities Management,"Finance, Audit & Business Development ",Vinci Construction UK Limited,47528,"87,935.53", Facilities Management , Large , Programme 
UK Statistics Authority,Office for National Statistics,06-Sep-17,Travel and Subsistence,"Finance, Audit & Business Development ",Redfern Travel,47535,"37,795.35", Travel and Accommodation Booking Service , SME , Programme 
UK Statistics Authority,Office for National Statistics,06-Sep-17,Travel and Subsistence,"Finance, Audit & Business Development ",Calder World of Travel,47538,"28,868.17", Travel and Accommodation Booking Service , SME , Programme 
UK Statistics Authority,Office for National Statistics,06-Sep-17,"ICT Outsourcing, Maintenance and Support",Digital Services & Technology,QA Ltd,47544,"60,600.00", Information Management Services, Large , Programme 
UK Statistics Authority,Office for National Statistics,06-Sep-17,Consultant Costs,Census,Ernst & Young Llp,47545,"88,056.00", Census Information Management , Large , Programme 
UK Statistics Authority,Office for National Statistics,06-Sep-17,ICT Software,Digital Services & Technology,Comparex UK Ltd,47556,"143,598.04", Information Management Services, Large , Programme 
UK Statistics Authority,Office for National Statistics,06-Sep-17,Capital Major Works > 25k,Business Services & Development,Hawkings Cladding Ltd,47557,"99,458.10", Major Works Newport, SME , Programme 
UK Statistics Authority,Office for National Statistics,06-Sep-17,"ICT Outsourcing, Maintenance and Support",Digital Services & Technology,BT Dfts,47560,"109,320.00", Information Management Services, Large , Programme 
UK Statistics Authority,Office for National Statistics,06-Sep-17,Telecoms,Digital Services & Technology,BT Dfts,47560,"34,861.25", Information Management Services, Large , Programme 
UK Statistics Authority,Office for National Statistics,06-Sep-17,Telecoms,Digital Services & Technology,BT Dfts,47560,"26,677.97", Information Management Services, Large , Programme 
UK Statistics Authority,Office for National Statistics,07-Sep-17,High Street Vouchers,Social Surveys,Park Retail Ltd,47563,"64,433.50", Social Surveys Incentive Vouchers, Large , Programme 
UK Statistics Authority,Office for National Statistics,07-Sep-17,Social Surveys,National Accounts And Economic Statistics,TNS UK Ltd,47568,"1,663.20", Statistical Services , Large , Programme 
UK Statistics Authority,Office for National Statistics,07-Sep-17,Social Surveys,National Accounts And Economic Statistics,TNS UK Ltd,47568,"179,464.80", Statistical Services , Large , Programme 
UK Statistics Authority,Office for National Statistics,07-Sep-17,Social Surveys,Public Policy Analysis ,TNS UK Ltd,47568,"391,905.60", Statistical Services , Large , Programme 
UK Statistics Authority,Office for National Statistics,07-Sep-17,Furniture Costing > 2k,Business Services & Development,The Senator Group,47569,"12,714.00", Smart Working Furniture London, Large , Programme 
UK Statistics Authority,Office for National Statistics,07-Sep-17,Furniture Costing > 2k,Digital Services & Technology,The Senator Group,47569,"187,267.82", Smart Working Furniture Newport, Large , Programme 
UK Statistics Authority,Office for National Statistics,07-Sep-17,"ICT Outsourcing, Maintenance and Support",Digital Services & Technology,QA Ltd,47572,"128,640.00", Information Management Services, Large , Programme 
UK Statistics Authority,Office for National Statistics,07-Sep-17,Childcare Services,Corporate Support,Computershare Voucher Services,47573,"36,412.54", Childcare Vouchers , Large , Programme 
UK Statistics Authority,Office for National Statistics,07-Sep-17,"ICT Outsourcing, Maintenance and Support",Digital Services & Technology,Proact IT UK Ltd.,47576,"66,960.00", Information Management Services, SME , Programme 
UK Statistics Authority,Office for National Statistics,07-Sep-17,IT (Owned) At Cost,Digital Services & Technology,Proact IT UK Ltd.,47576,"142,927.20", Information Management Services, SME , Programme 
UK Statistics Authority,Office for National Statistics,08-Sep-17,Contractor Costs,Business Services & Development,HLG Services (Uk) Ltd T/A HLG Associates,47835,"31,239.00", Recruitment Services, SME , Programme 
UK Statistics Authority,Office for National Statistics,08-Sep-17,"ICT Outsourcing, Maintenance and Support",Digital Services & Technology,Valtech Ltd,47859,"76,272.00", Information Management Services, Large , Programme 
UK Statistics Authority,Office for National Statistics,11-Sep-17,Procurement Card,"Finance, Audit & Business Development ",Royal Bank of Scotland,48145,"60,773.45", Multiple Procurement Card Purchases , Large , Programme 
UK Statistics Authority,Office for National Statistics,11-Sep-17,Stationery,"Finance, Audit & Business Development ",Royal Bank of Scotland,48145,"12,098.04", Multiple Procurement Card Stationery Purchases , Large , Programme 
UK Statistics Authority,Office for National Statistics,12-Sep-17,Finders Fee for IT Recruitment,Digital Services & Technology,Experis,48160,"44,658.00", Information Management Services, SME , Programme 
UK Statistics Authority,Office for National Statistics,12-Sep-17,Fixtures and Fittings at Cost,Data Collection,The Senator Group,48171,"1,264.64", Smart Working Furniture Newport, Large , Programme 
UK Statistics Authority,Office for National Statistics,12-Sep-17,Furniture Costing > 2k,Business Services & Development,The Senator Group,48171,"6,313.88", Smart Working Furniture Titchfield, Large , Programme 
UK Statistics Authority,Office for National Statistics,12-Sep-17,Furniture Costing > 2k,Data Collection,The Senator Group,48171,"81,789.75", Smart Working Furniture Newport, Large , Programme 
UK Statistics Authority,Office for National Statistics,12-Sep-17,Consultant Costs,Census,Deloitte,48174,"38,208.00", Census Information Management , SME , Programme 
UK Statistics Authority,Office for National Statistics,12-Sep-17,Furniture Costing > 2k,Business Services & Development,Audience Systems Ltd,48178,"26,895.60", Major Works Newport, SME , Programme 
UK Statistics Authority,Office for National Statistics,13-Sep-17,Contractor Costs,Digital Services & Technology,Empiric Solutions Limited,48651,"15,624.00", Information Management Services, Large , Programme 
UK Statistics Authority,Office for National Statistics,13-Sep-17,Contractor Costs,Digital Services & Technology,Empiric Solutions Limited,48651,"10,416.00", Information Management Services, Large , Programme 
UK Statistics Authority,Office for National Statistics,13-Sep-17,Travel and Subsistence,"Finance, Audit & Business Development ",Redfern Travel,48657,"53,946.27", Travel and Accommodation Booking Service , SME , Programme 
UK Statistics Authority,Office for National Statistics,13-Sep-17,Accommodation and Building Management,Data Collection,Heathrow Airport,48659,"33,561.61", Rental of space at Heathrow Airport, Large , Programme 
UK Statistics Authority,Office for National Statistics,13-Sep-17,Contractor Costs,Business Services & Development,Parity Resources Limited,48669,249.18, Information Management Services, Large , Programme 
UK Statistics Authority,Office for National Statistics,13-Sep-17,Contractor Costs,Business Services & Development,Parity Resources Limited,48669,"12,311.26", Information Management Services, Large , Programme 
UK Statistics Authority,Office for National Statistics,13-Sep-17,Contractor Costs,"Finance, Audit & Business Development ",Parity Resources Limited,48669,"15,828.76", Information Management Services, Large , Programme 
UK Statistics Authority,Office for National Statistics,13-Sep-17,Consultant Costs,Data Collection,The Behavioural Insights Team,48672,"43,089.60", Census Information Management Services, SME , Programme 
UK Statistics Authority,Office for National Statistics,14-Sep-17,"ICT Outsourcing, Maintenance and Support",Digital Services & Technology,RSM Partners Ltd,48678,"56,520.76", Information Management Services , SME , Programme 
UK Statistics Authority,Office for National Statistics,14-Sep-17,Consultant Costs,Economic Statistics Transformation,NIESR,48684,"285,084.78", Information Management Services , SME , Programme 
UK Statistics Authority,Office for National Statistics,15-Sep-17,Contractor Costs,Economic Statistics Transformation,Mango Solutions,49018,"26,598.00", Information Management Services, SME , Programme 
UK Statistics Authority,Office for National Statistics,15-Sep-17,"ICT Outsourcing, Maintenance and Support",Digital Services & Technology,Mango Solutions,49018,"24,531.00", Information Management Services, SME , Programme 
UK Statistics Authority,Office for National Statistics,15-Sep-17,Contractor Costs,Digital Services & Technology,Mastek,49019,"42,180.00", Information Management Services, Large , Programme 
UK Statistics Authority,Office for National Statistics,15-Sep-17,"ICT Outsourcing, Maintenance and Support",Digital Services & Technology,Mastek,49019,"211,440.00", Information Management Services, Large , Programme 
UK Statistics Authority,Office for National Statistics,15-Sep-17,Contractor Costs,Digital Services & Technology,E Synergy Solutions,49020,"62,178.00", Information Management Services, SME , Programme 
UK Statistics Authority,Office for National Statistics,15-Sep-17,"ICT Outsourcing, Maintenance and Support",Digital Services & Technology,E Synergy Solutions,49020,"66,375.00", Information Management Services, SME , Programme 
UK Statistics Authority,Office for National Statistics,15-Sep-17,"ICT Outsourcing, Maintenance and Support",Digital Services & Technology,E Synergy Solutions,49020,"10,800.00", Information Management Services, SME , Programme 
UK Statistics Authority,Office for National Statistics,15-Sep-17,"ICT Outsourcing, Maintenance and Support",Digital Services & Technology,E Synergy Solutions,49020,"9,720.00", Information Management Services, SME , Programme 
UK Statistics Authority,Office for National Statistics,15-Sep-17,Facilities Management,"Finance, Audit & Business Development ",Vinci Construction UK Limited,49021,"107,352.41", Facilities Management , Large , Programme 
UK Statistics Authority,Office for National Statistics,15-Sep-17,Consultant Costs,Census,Bramble.CC,49027,"186,697.20", Census Information Management Services, SME , Programme 
UK Statistics Authority,Office for National Statistics,15-Sep-17,Contractor Costs,Digital Services & Technology,LA International,49028,"26,462.17", Information Management Services, SME , Programme 
UK Statistics Authority,Office for National Statistics,15-Sep-17,"ICT Outsourcing, Maintenance and Support",Digital Services & Technology,LA International,49028,"10,226.88", Information Management Services, SME , Programme 
UK Statistics Authority,Office for National Statistics,15-Sep-17,Consultant Costs,Census,Ernst & Young Llp,49031,"81,804.00", Census Information Management Services, Large , Programme 
UK Statistics Authority,Office for National Statistics,18-Sep-17,Data Response Testing,Census,Ipsos MORI,49242,"37,061.28", Census Information Management Services, Large , Programme 
UK Statistics Authority,Office for National Statistics,18-Sep-17,Electricity Payments,Business Services & Development,EDF Energy,30000551,"25,074.90", Newport Electricity Charges  , Large , Programme 
UK Statistics Authority,Office for National Statistics,18-Sep-17,Electricity Payments,Business Services & Development,EDF Energy,30000552,"27,561.10", Titchfield Electricity Charges  , Large , Programme 
UK Statistics Authority,Office for National Statistics,18-Sep-17,Electricity Payments,Business Services & Development,EDF Energy,30000553,"29,618.11", London Electricity Charges  , Large , Programme 
UK Statistics Authority,Office for National Statistics,19-Sep-17,"ICT Outsourcing, Maintenance and Support","Finance, Audit & Business Development ",Certus Solutions Consulting Services Ltd,49251,"53,640.00", Information Management Services, SME , Programme 
UK Statistics Authority,Office for National Statistics,19-Sep-17,Postage,Data Collection,UK Mail,49263,"32,982.50", Outgoing Postage , Large , Programme 
UK Statistics Authority,Office for National Statistics,19-Sep-17,Training and Development,Business Services & Development,The Whitehall & Industry Group,49271,"43,404.00", High Potential Programme, SME , Programme 
UK Statistics Authority,Office for National Statistics,19-Sep-17,Major Works Over 25k,Business Services & Development,Paramount Office Interiors Ltd,49273,"31,774.99", Major Works Titchfield, SME , Programme 
UK Statistics Authority,Office for National Statistics,19-Sep-17,Rent Payable,Business Services & Development,D G Lease Limited,49278,"1,010,250.00",Drummond Gate Rent, SME , Programme 
UK Statistics Authority,Office for National Statistics,20-Sep-17,Travel and Subsistence,"Finance, Audit & Business Development ",Redfern Travel,49777,"44,283.60", Travel and Accommodation Booking Service , SME , Programme 
UK Statistics Authority,Office for National Statistics,20-Sep-17,"ICT Outsourcing, Maintenance and Support",Digital Services & Technology,QA Ltd,49785,"280,965.00", Information Management Services, Large , Programme 
UK Statistics Authority,Office for National Statistics,21-Sep-17,"ICT Outsourcing, Maintenance and Support",Digital Services & Technology,Mango Solutions,49794,"119,157.48", Information Management Services, SME , Programme 
UK Statistics Authority,Office for National Statistics,21-Sep-17,Titchfield Postage Meter,Corporate Support,Pitney Bowes Ltd,49797,"32,135.14", Postage Costs, Large , Programme 
UK Statistics Authority,Office for National Statistics,22-Sep-17,Contractor Costs,Digital Services & Technology,Parity Resources Limited,50147,644.58, Information Management Services, Large , Programme 
UK Statistics Authority,Office for National Statistics,22-Sep-17,Contractor Costs,Digital Services & Technology,Parity Resources Limited,50147,"19,749.48", Information Management Services, Large , Programme 
UK Statistics Authority,Office for National Statistics,22-Sep-17,Contractor Costs,Digital Services & Technology,Parity Resources Limited,50147,"2,558.16", Information Management Services, Large , Programme 
UK Statistics Authority,Office for National Statistics,22-Sep-17,Purchase of Goods/Services - ICT Outsourcing and Maint./Support,Digital Services & Technology,Parity Resources Limited,50147,"2,562.07", Information Management Services, Large , Programme 
UK Statistics Authority,Office for National Statistics,26-Sep-17,"ICT Outsourcing, Maintenance and Support",Digital Services & Technology,QA Ltd,50387,"146,700.00", Information Management Services, Large , Programme 
UK Statistics Authority,Office for National Statistics,27-Sep-17,Telecoms,Data Collection,BT Global Services,50802,"7,599.77", Information Management Services, Large , Programme 
UK Statistics Authority,Office for National Statistics,27-Sep-17,Telecoms,Digital Services & Technology,BT Global Services,50802,"25,800.73", Information Management Services, Large , Programme 
UK Statistics Authority,Office for National Statistics,27-Sep-17,Social Surveys,Public Policy Analysis ,TNS UK Ltd,50808,"389,574.00", Statistical Services , Large , Programme 
UK Statistics Authority,Office for National Statistics,27-Sep-17,"ICT Outsourcing, Maintenance and Support",Digital Services & Technology,Methods Digital Ltd,50810,"179,910.00", Information Management Services, Large , Programme 
UK Statistics Authority,Office for National Statistics,27-Sep-17,"ICT Outsourcing, Maintenance and Support",Digital Services & Technology,Methods Digital Ltd,50810,"76,950.00", Information Management Services, Large , Programme 
UK Statistics Authority,Office for National Statistics,27-Sep-17,"ICT Outsourcing, Maintenance and Support",Digital Services & Technology,Methods Digital Ltd,50810,"9,900.00", Information Management Services, Large , Programme 
UK Statistics Authority,Office for National Statistics,27-Sep-17,"ICT Outsourcing, Maintenance and Support",Digital Services & Technology,Methods Digital Ltd,50810,"28,980.00", Information Management Services, Large , Programme 
UK Statistics Authority,Office for National Statistics,27-Sep-17,"ICT Outsourcing, Maintenance and Support",Digital Services & Technology,Methods Digital Ltd,50810,"19,800.00", Information Management Services, Large , Programme 
UK Statistics Authority,Office for National Statistics,27-Sep-17,"ICT Outsourcing, Maintenance and Support",Digital Services & Technology,Methods Digital Ltd,50810,"52,260.00", Information Management Services, Large , Programme 
UK Statistics Authority,Office for National Statistics,27-Sep-17,"ICT Outsourcing, Maintenance and Support",Digital Services & Technology,QA Ltd,50816,"66,720.00", Information Management Services, Large , Programme 
UK Statistics Authority,Office for National Statistics,27-Sep-17,Legal Services,Census,Pinsent Masons,50817,"53,863.80", Legal Services 2021 Census, Large , Programme 
UK Statistics Authority,Office for National Statistics,27-Sep-17,"ICT Outsourcing, Maintenance and Support",Digital Services & Technology,Clearvision-CM,50826,"26,784.00", Information Management Services, SME , Programme 
UK Statistics Authority,Office for National Statistics,27-Sep-17,Consultant Costs,Digital Services & Technology,E Synergy Solutions,50828,"14,520.00", Information Management Services, SME , Programme 
UK Statistics Authority,Office for National Statistics,27-Sep-17,Contractor Costs,Digital Services & Technology,E Synergy Solutions,50828,"21,864.00", Information Management Services, SME , Programme 
UK Statistics Authority,Office for National Statistics,27-Sep-17,"ICT Outsourcing, Maintenance and Support",Digital Services & Technology,E Synergy Solutions,50828,"39,792.00", Information Management Services, SME , Programme 
UK Statistics Authority,Office for National Statistics,27-Sep-17,High Street Vouchers,Social Surveys,Park Retail Ltd,50829,"57,136.70", Social Surveys Incentive Vouchers, Large , Programme 
UK Statistics Authority,Office for National Statistics,27-Sep-17,Oracle Cloud Licenses,"Finance, Audit & Business Development ",SCC,50835,"66,171.92",Oracle Cloud Licenses, Large , Programme 
UK Statistics Authority,Office for National Statistics,27-Sep-17,"ICT Outsourcing, Maintenance and Support",Digital Services & Technology,Amazon Web Services Inc,30000563,"43,771.12", Web Services , Large , Programme 
UK Statistics Authority,Office for National Statistics,27-Sep-17,"ICT Outsourcing, Maintenance and Support",Digital Services & Technology,Amazon Web Services Inc,30000564,"38,626.50", Web Services , Large , Programme 
